Cogmind - Beta 9.6 @@@ ROGUE MODE // 2020.05.27 @ 21:58:57 Player: pGoos Result: Destroyed by S-10 Pest with Light Assault Rifle Performance ------------- Evolutions (0) 0 Regions Visited (1) 200 Robots Destroyed (10) 50 Value Destroyed (229) 229 Prototype IDs (0) 0 Alien Tech Used (0) 0 Bonus (0) 0 TOTAL SCORE: 479 Bonus ------- None Cogmind --------- Core Integrity 0/250 Matter 359/500 Energy 100/100 System Corruption 5% Temperature Cool (0) Movement Core (150) Ox2 Location -10/Materials Parts ------- > --- POWER (1) -------- (None) > --- PROPULSION (2) --- (None) > --- UTILITY (2) ------ Small Storage Unit High-capacity Matter Pod > --- WEAPON (2) ------- (None) > --- INVENTORY (6) ---- Ion Engine Light Ion Engine Light Treads Aluminum Leg Peak State ------------ > --- POWER ------------ Ion Engine > --- PROPULSION ------- Aluminum Leg Aluminum Leg > --- UTILITY ---------- Small Storage Unit High-capacity Matter Pod > --- WEAPON ----------- Assault Rifle Light Assault Rifle > --- INVENTORY -------- Ion Engine Light Ion Engine Light Treads Aluminum Leg Light Assault Rifle [Rating: 7] Favorites ----------- Power Ion Engine Engine Ion Engine Propulsion Aluminum Leg Leg Aluminum Leg Utility Small Storage Unit Storage Small Storage Unit Weapon Light Assault Rifle Energy Gun Small Laser Ballistic Gun Light Assault Rifle Build | -11 -10 ------- Run | Scr Mat Slots Evolved . | . . Power . | . . Propulsion . | . . Utility . | . . Weapon . | . . Parts Attached 11 | 6 5 Power 2 | 1 1 Engine 2 | 1 1 Core . | . . Reactor . | . . Propulsion 3 | 2 1 Treads . | . . Leg 3 | 2 1 Wheel . | . . Hover . | . . Flight . | . . Utility 2 | 1 1 Device . | . . Storage 2 | 1 1 Processor . | . . Hackware . | . . Protection . | . . Artifact . | . . Weapon 4 | 2 2 Energy Gun 1 | . 1 Energy Cannon . | . . Ballistic Gun 3 | 2 1 Ballistic Cannon . | . . Launcher . | . . Special Weapon . | . . Impact Weapon . | . . Slashing Weapon . | . . Piercing Weapon . | . . Special Melee Weapon . | . . Unidentified Prototypes . | . . Parts Lost 7 | . 7 Power 1 | . 1 Propulsion 2 | . 2 Utility . | . . Weapon 4 | . 4 Highest Loss Streak 7 | . 7 Average Slot Usage (%) 82 | . 82 Engine 13 | . 13 Leg 25 | . 25 Storage 16 | . 16 Ballistic Gun 24 | . 24 Naked Turns . | . . Heaviest Build 12 | 12 12 Greatest Support 20 | 20 20 Greatest Overweight (x) 2 | 2 2 Average Overweight (x) . | . . Largest Inventory Capacity 6 | 6 6 Average Capacity 5 | 5 6 Most Carried 6 | 5 6 Average Carried 4 | 3 5 Final Capacity 6 | 6 6 Final Carried 5 | 5 4 Class Distribution -------------------- 100% | Mutant Dominant Class ---------------- Mutant | -10/Materials Resources | -11 -10 ----------- Run | Scr Mat Matter Collected 496 | 292 204 Remotely . | . . Salvage Created 382 | 99 283 Parts 20 | 5 15 Haulers Intercepted . | . . Recyclers Shooed 1 | . 1 Parts Field Recycled . | . . Retrieved Matter . | . . Parts Self-Destructed . | . . Prevented . | . . Kills | -11 -10 ------- Run | Scr Mat Combat Hostiles Destroyed 6 | . 6 Melee 1 | . 1 Guns 5 | . 5 Classes Destroyed 4 | 2 2 Builder 1 | . 1 Tunneler 2 | 2 . Recycler 1 | 1 . Grunt 6 | . 6 Best Kill Streak 2 | 2 1 Combat Bots Only 1 | . 1 Max Kills in Single Turn 1 | 1 1 Gunslinging . | . . Exploded . | . . Melee 1 | . 1 Uniques/NPCs Destroyed . | . . Combat | -11 -10 -------- Run | Scr Mat Damage Taken 955 | . 955 Core 256 | . 256 Absorbed by Shields . | . . Core Remaining (%) 100 | 100 . Volleys Fired 64 | 8 56 Largest 2 | 2 2 Hottest 60 | 40 60 Shots Fired 111 | 16 95 Gun 111 | 16 95 Cannon . | . . Launcher . | . . Special . | . . Kinetic 110 | 16 94 Thermal 1 | . 1 Explosive . | . . Electromagnetic . | . . Robot Hit Streak 10 | 4 10 Robot Miss Streak 3 | 3 3 Penetration Max . | . . Secondary Targets . | . . Shots Hit Robots 72 | 10 62 Core Hits 24 | 5 19 Critical Hits 2 | 1 1 Critical Kills . | . . Critical Parts Destroyed 2 | 1 1 Melee Attacks . | . . Impact . | . . Slashing . | . . Piercing . | . . Sneak Attacks . | . . Combat Hostiles . | . . Follow-up Attacks . | . . Damage Inflicted 693 | 123 570 Guns 673 | 123 550 Cannons . | . . Explosions . | . . Melee . | . . Ramming 20 | . 20 Kinetic 661 | 123 538 Thermal 12 | . 12 Explosive . | . . Electromagnetic . | . . Impact . | . . Slashing . | . . Piercing . | . . Highest Corruption 5 | . 5 Average Corruption 4 | . 4 Corruption Purged . | . . Effects 4 | . 4 Message Errors 2 | . 2 Heat Flow Errors 1 | . 1 Targeting Errors 1 | . 1 Overload Shots . | . . Overflow Damage . | . . Projectiles . | . . Explosions . | . . Melee . | . . Knockbacks . | . . Impact . | . . Kinetic . | . . Secondary . | . . Self-Inflicted Damage 3 | . 3 Shots . | . . Rammed 5 | . 5 Targets Rammed 9 | . 9 Kicked 4 | . 4 Crushed . | . . Highest Temperature 155 | . 155 Average Temperature 37 | . 37 Received Heat Transfer 483 | . 483 Siege Activations . | . . Robots Corrupted . | . . Combat Hostiles . | . . Parts Fried . | . . Impact Corruptions . | . . Robots Melted . | . . Combat Hostiles . | . . Parts Melted . | . . Heat Transferred 25 | . 25 Parts Sabotaged . | . . Parts Stolen . | . . Parts Stripped . | . . Power Chain Reactions . | . . Missiles Intercepted . | . . Alert | -11 -10 ------- Run | Scr Mat Peak Influence 114 | 15 114 Average Influence 40 | 5 55 Maximum Alert Level . | . . Low Security (%) 100 | 100 100 Level 1 . | . . Level 2 . | . . Level 3 . | . . Level 4 . | . . Level 5 . | . . High Security . | . . Max Security . | . . Squads Dispatched 3 | . 3 Investigation 1 | . 1 Extermination . | . . Reinforcement 2 | . 2 Assault . | . . Garrison . | . . Intercept . | . . Construction Impeded . | . . Haulers Reinforced . | . . Stealth | -11 -10 --------- Run | Scr Mat Distress Signals 2 | . 2 Communications Jammed . | . . Distress Signals . | . . Times Spotted 17 | . 17 Peak Tracking Total 9 | . 9 Tactical Retreats . | . . Traps | -11 -10 ------- Run | Scr Mat Traps Triggered 2 | . 2 Indirectly . | . . Trap Hack Attempts . | . . Triggered . | . . Disarmed . | . . Reprogrammed . | . . Reused . | . . Traps Extracted . | . . Installed . | . . Triggered . | . . Machines | -11 -10 ---------- Run | Scr Mat Machines Disabled . | . . Max in Single Turn . | . . Machines Sabotaged . | . . Garrisons Compromised . | . . Overloaded Fab Kills . | . . Fab Network Shutdowns . | . . Hacking | -11 -10 --------- Run | Scr Mat Machines Accessed 2 | . 2 Terminals . | . . Fabricators . | . . Repair Stations 1 | . 1 Recycling Units 1 | . 1 Scanalyzers . | . . Garrison Access . | . . Total Hacks 4 | . 4 Successful 1 | . 1 Failed 3 | . 3 Catastrophic . | . . Database Lockouts . | . . Manual . | . . Terminals . | . . Fabricators . | . . Repair Stations 1 | . 1 Recycling Units 3 | . 3 Scanalyzers . | . . Garrison Access . | . . Terminal Hacks . | . . Fabricator Hacks . | . . Repair Station Hacks . | . . Recycling Unit Hacks 1 | . 1 Report Inventory 1 | . 1 Scanalyzer . | . . Garrison Access Hacks . | . . Unauthorized Hacks . | . . Terminals . | . . Fabricators . | . . Repair Stations . | . . Recycling Units . | . . Scanalyzers . | . . Garrison Access . | . . Data Cores Recovered . | . . Used . | . . Hacking Detections 2 | . 2 Full Trace Events 1 | . 1 Feedback Events . | . . Feedback Blocked . | . . Robot Schematics Acquired . | . . Robots Built . | . . Matter . | . . Time . | . . Total Robot Build Rating . | . . Part Schematics Acquired . | . . Parts Built . | . . Matter . | . . Time . | . . Total Part Build Rating . | . . Parts Repaired . | . . Time . | . . Parts Recycled . | . . Recycled Matter . | . . Retrieved Matter . | . . Retrieved Components . | . . Parts Scanalyzed . | . . Part Schematics Acquired . | . . Parts Damaged . | . . Bothacking | -11 -10 ------------ Run | Scr Mat Used RIF Installer . | . . Robots Hacked . | . . Non-combat . | . . Combat . | . . Robot Hacks Applied . | . . Relay Couplers Released . | . . Robots Rewired . | . . Allies Hacked . | . . Hacks Repelled . | . . Allies | -11 -10 -------- Run | Scr Mat Total Allies . | . . Largest Group . | . . Highest-Rated Group . | . . Highest-Rated Ally . | . . Total Orders . | . . Ally Attacks . | . . Total Damage . | . . Kills . | . . Allies Corrupted . | . . Allies Melted . | . . Intel | -11 -10 ------- Run | Scr Mat Robot Analysis Total . | . . Derelict Logs Recovered . | . . Drone Launches . | . . Drone Recoveries . | . . Exploration | -11 -10 ------------- Run | Scr Mat Turns Passed 480 | 140 340 Spaces Moved 217 | 90 127 Core 10 | 7 3 Treads . | . . Legs 207 | 83 124 Wheels . | . . Hover . | . . Flight . | . . Fastest Speed 50 | 50 120 Average Speed 118 | 115 120 Slowest Speed 150 | 150 150 Overloaded Moves . | . . Propulsion Burnouts . | . . Robots Hopped . | . . Cave-ins Triggered . | . . Exploration Rate (%) 15 | 5 26 Regions Visited 1 Branch Regions . Pre-discovered Areas . | . . Known Exits Taken . | . . Unknown Exits Taken 1 | 1 . Scrap Searched . | . . Spaces Dug . | . . Terrain Destroyed . | . . Melee . | . . Projectile . | . . AOE . | . . Actions | -11 -10 --------- Run | Scr Mat Total 334 | 108 226 Wait 21 | . 21 Move 216 | 89 127 Hop . | . . Pick Up 10 | 5 5 Fast Attach 6 | 6 . Attach 3 | . 3 Detach . | . . Swap 2 | . 2 Drop 3 | . 3 Fire 64 | 8 56 Melee . | . . Ram 4 | . 4 Kick 5 | . 5 Crush . | . . Escape Stasis . | . . Rewire . | . . Trap . | . . Miscellaneous . | . . Route ------- -11/Scrapyard -10/Materials History --------- Turn | Location | Event 4 | -11/Scrapyard | Discovered new exit (range 15) 141 | -11/Scrapyard | Entered Materials 340 | -10/Materials | Build established: Mutant 469 | -10/Materials | Core integrity fell below 50% 476 | -10/Materials | Core integrity fell below 20% 481 | -10/Materials | Destroyed by S-10 Pest with Light Assault Rifle Last Messages --------------- Sml. Laser destroyed. K-01 Serf collects debris. W-16 Scout sends out distress signal. Kicked G-34 Mercenary out of the way. Lgt. Assault Rifle destroyed. ALERT: Hostiles spotted, dispatching reinforcements to Terminal M006. K-01 Serf collects debris. Slammed into G-34 Mercenary. Aluminum Leg destroyed. Slammed into G-34 Mercenary. K-01 Serf collects debris. Ion Engine destroyed. Acquired 32 matter. K-01 Serf collects debris. Slammed into G-34 Mercenary. Destabilizing: System corrupted (+1). Slammed into G-34 Mercenary. G-34 Mercenary destroyed. Acquired 50 matter. Slammed into S-10 Pest. Map ----- +----------------------------------------------------+ | ????????????????????# """ # # """ """ #???????? | | ????????????????????# """ + % + """ """ #???????? | | ????????????????????# """ # # """ """ #???????? | | ????????????????????# # # #???????? | | ????????????????????# """ # #= #???????? | | ????????????????????# """ # ###########???????? | | ????????????????????# """ # ^^#?????????????????? | | ????????????????????# # #?????????????????? | | ????????????????????# # #?????????????????? | | ??????????????###???########% #?????????????????? | | ??????????????# ######## #?????????????????? | | ????????????? ########??????????? | | ????????????? # !! #??????????? | | ????????????? # !! #??????????? | | ??????????????# ######## # #??????????? | | ??????????????## ???# =+ + ! #??????????? | | ????????????????????# # # #??????????? | | ????????????????????# # # #??????????? | | ????????????????????# """ # ########??????????? | | ????????????????????# """ # ###?????????????????? | | ????????????????????# """ # #???????????????????? | | ????????????????????######## #???????????????????? | | ?????????????????????# # #???????????????????? | | ?????????????????????# # #???????????????????? | | ?????????????????????# gs*!# #???????????????????? | | ?????????????????????# s@ # #???????????????????? | | ?????????????????????###s### ##########??????????? | | ??????????????????#### k ^ ?????? | | ??????????????????# ?????? | | ??????????????????# ^ ?????? | | ????????????? ### ^ ##+######" "#??????? | | ??????????? ???# ^ #? ??????????????? | | ?????????? ????# #?? =?????????????? | | ??????????? ?????# ### #??? ????????????? | | ??????????? ??????# ??# #????" #???????????? | | ???????????? ???????# ??# #????? #???????????? | | ????????????? ????????# ??# #??????#???????????? | | ??????????????????????#+??# #??????????????????? | | ?????????????????????? ??# #??????????????????? | | ?????????????????????? ??# #??????????????????? | | ?????????????????????? ??? #??????????????????? | | ?????????????????????? ???? #??????????????????? | | ??????????????????????"???? #??????????????????? | | ???????????????????????????? ????????????????????? | | ?????????????????????????????????????????????????? | | ?????????????????????????????????????????????????? | | ?????????????????????????????????????????????????? | | ?????????????????????????????????????????????????? | | ?????????????????????????????????????????????????? | | ?????????????????????????????????????????????????? | +----------------------------------------------------+ Best States ------------- Heat Dissipation 25 Energy Generation 10 Energy Capacity 250 Matter Stores 359 Matter Capacity 500 Sight Range 16 Terrain Scan Density 10 Evasion (%) 50 Item Schematics ----------------- None Robot Schematics ------------------ None Fabricated ------------ Nothing Alien Tech Used ----------------- None Achievements -------------- None Challenges ------------ None Game ------ Seed SalvageBombArmor Manual? 0 Play Time 00:06:55 Cumulative 10.1 hours Start 2020.05.27 @ 21:45:18 End 2020.05.27 @ 21:58:57 Sessions 1 Manual Loads 0 Difficulty Rogue Special Mode None Game No. 16 Rogue 16 Adventurer 0 Explorer 0 Win Type - Total 0 Types 0/0/0/0/0/0/0 Lore% 15 Gallery% 16 Achievement% 16 Wizard Run 0 Options --------- ASCII 0 Keyboard 0 Movement Mouse Keybinds 0 Fullscreen 2 Font 24/Terminus Map View 113x50 Tactical HUD 0 Map Filters NONE Filters NONE Steam 1 RUN: 3810034f-228e-443e-87ec-4f1e0d39e6e4